[Event "November 21 Early 2023"]
[Site "https://www.chess.com"]
[Date "2023.11.21"]
[Round "2"]
[White "Der_Balak_3Halak"]
[Black "Ismayil, Malak"]
[Result "0-1"]
[Board "194"]
[TimeControl "180+1"]
[BlackFideId "13412604"]
[WhiteElo "2300"]
[BlackElo "1898"]
[BlackTeam "AZE"]
[WhiteClock "0:00:08"]
[BlackClock "0:00:37"]

1. e4 {[%clk 0:03:00]}  e5 {[%clk 0:02:57]} 2. Nf3 {[%clk 0:03:00]}  Nc6 {[%clk 0:02:55]} 3. Bb5 {[%clk 0:03:00]}  a6 {[%clk 0:02:53]} 4. Bxc6 {[%clk 0:02:59]}  dxc6 {[%clk 0:02:52]} 5. O-O {[%clk 0:03:00]}  Bd6 {[%clk 0:02:53]} 6. d4 {[%clk 0:02:58]}  Qe7 {[%clk 0:02:53]} 7. dxe5 {[%clk 0:02:55]}  Bxe5 {[%clk 0:02:54]} 8. Nxe5 {[%clk 0:02:55]}  Qxe5 {[%clk 0:02:53]} 9. Nc3 {[%clk 0:02:54]}  Nf6 {[%clk 0:02:52]} 10. Qf3 {[%clk 0:02:41]}  Bg4 {[%clk 0:02:49]} 11. Qf4 {[%clk 0:02:33]}  Qxf4 {[%clk 0:02:46]} 12. Bxf4 {[%clk 0:02:34]}  O-O-O {[%clk 0:02:46]} 13. f3 {[%clk 0:02:33]}  Be6 {[%clk 0:02:40]} 14. Rad1 {[%clk 0:02:32]}  Nd7 {[%clk 0:02:35]} 15. b3 {[%clk 0:02:09]}  f6 {[%clk 0:02:23]} 16. Ne2 {[%clk 0:01:56]}  c5 {[%clk 0:02:16]} 17. c4 {[%clk 0:01:49]}  b6 {[%clk 0:01:51]} 18. Nc3 {[%clk 0:01:47]}  Kb7 {[%clk 0:01:40]} 19. Nd5 {[%clk 0:01:35]}  c6 {[%clk 0:01:34]} 20. Ne3 {[%clk 0:01:35]}  Ne5 {[%clk 0:01:30]} 21. Bxe5 {[%clk 0:01:31]}  fxe5 {[%clk 0:01:31]} 22. Kf2 {[%clk 0:01:30]}  Rd4 {[%clk 0:01:30]} 23. Nc2 {[%clk 0:01:28]}  Rdd8 {[%clk 0:01:25]} 24. Ke3 {[%clk 0:01:18]}  b5 {[%clk 0:01:24]} 25. cxb5 {[%clk 0:01:03]}  cxb5 {[%clk 0:01:25]} 26. Rd2 {[%clk 0:00:39]}  Rxd2 {[%clk 0:01:20]} 27. Kxd2 {[%clk 0:00:40]}  c4 {[%clk 0:01:20]} 28. b4 {[%clk 0:00:25]}  Rd8+ {[%clk 0:01:18]} 29. Ke2 {[%clk 0:00:24]}  c3 {[%clk 0:00:57]} 30. Rd1 {[%clk 0:00:24]}  Bc4+ {[%clk 0:00:53]} 31. Ke1 {[%clk 0:00:24]}  Rxd1+ {[%clk 0:00:52]} 32. Kxd1 {[%clk 0:00:24]}  Bxa2 {[%clk 0:00:53]} 33. Ne3 {[%clk 0:00:18]}  Bb3+ {[%clk 0:00:53]} 34. Kc1 {[%clk 0:00:18]}  Kc6 {[%clk 0:00:48]} 35. Nd1 {[%clk 0:00:17]}  Bxd1 {[%clk 0:00:45]} 36. Kxd1 {[%clk 0:00:18]}  a5 {[%clk 0:00:45]} 37. bxa5 {[%clk 0:00:18]}  b4 {[%clk 0:00:46]} 38. Kc2 {[%clk 0:00:17]}  Kb5 {[%clk 0:00:37]} 39. f4 {[%clk 0:00:17]}  Kxa5 {[%clk 0:00:37]} 40. fxe5 {[%clk 0:00:17]}  Kb5 {[%clk 0:00:38]} 41. e6 {[%clk 0:00:15]}  Kc6 {[%clk 0:00:38]} 42. e5 {[%clk 0:00:15]}  Kc7 {[%clk 0:00:37]} 43. Kd3 {[%clk 0:00:08]}  Kd8 {[%clk 0:00:37]} 0-1

[Event "November 21 Early 2023"]
[Site "https://www.chess.com"]
[Date "2023.11.21"]
[Round "2"]
[White "Grossboss19"]
[Black "AndresDelgado77"]
[Result "0-1"]
[Board "197"]
[TimeControl "180+1"]
[WhiteElo "2502"]
[BlackElo "2292"]
[WhiteClock "0:01:13"]
[BlackClock "0:00:31"]

1. c4 {[%clk 0:03:00]}  c5 {[%clk 0:02:54]} 2. Nf3 {[%clk 0:03:00]}  Nc6 {[%clk 0:02:54]} 3. g3 {[%clk 0:03:00]}  g6 {[%clk 0:02:54]} 4. Bg2 {[%clk 0:03:00]}  Bg7 {[%clk 0:02:55]} 5. Nc3 {[%clk 0:03:00]}  e6 {[%clk 0:02:55]} 6. O-O {[%clk 0:02:59]}  Nge7 {[%clk 0:02:55]} 7. e3 {[%clk 0:02:54]}  O-O {[%clk 0:02:54]} 8. d4 {[%clk 0:02:54]}  cxd4 {[%clk 0:02:55]} 9. Nxd4 {[%clk 0:02:53]}  Nxd4 {[%clk 0:02:54]} 10. exd4 {[%clk 0:02:54]}  d5 {[%clk 0:02:55]} 11. cxd5 {[%clk 0:02:54]}  Nxd5 {[%clk 0:02:54]} 12. Nxd5 {[%clk 0:02:54]}  exd5 {[%clk 0:02:53]} 13. Qb3 {[%clk 0:02:52]}  Bxd4 {[%clk 0:02:50]} 14. Bxd5 {[%clk 0:02:49]}  Bh3 {[%clk 0:02:42]} 15. Rd1 {[%clk 0:02:44]}  Qf6 {[%clk 0:02:38]} 16. Qf3 {[%clk 0:02:41]}  Rfd8 {[%clk 0:01:57]} 17. g4 {[%clk 0:02:11]}  Bxg4 {[%clk 0:01:35]} 18. Qxf6 {[%clk 0:01:59]}  Bxf6 {[%clk 0:01:34]} 19. f3 {[%clk 0:01:58]}  Be6 {[%clk 0:01:20]} 20. Bb3 {[%clk 0:01:49]}  Bxb3 {[%clk 0:01:19]} 21. Rxd8+ {[%clk 0:01:49]}  Rxd8 {[%clk 0:01:19]} 22. axb3 {[%clk 0:01:50]}  Rd1+ {[%clk 0:01:19]} 23. Kf2 {[%clk 0:01:50]}  Bg5 {[%clk 0:01:16]} 24. Rxa7 {[%clk 0:01:42]}  Rxc1 {[%clk 0:01:12]} 25. Rxb7 {[%clk 0:01:43]}  Rc2+ {[%clk 0:01:11]} 26. Kg3 {[%clk 0:01:42]}  Rxb2 {[%clk 0:01:10]} 27. b4 {[%clk 0:01:43]}  Kg7 {[%clk 0:01:02]} 28. b5 {[%clk 0:01:43]}  Be3 {[%clk 0:01:01]} 29. Rb8 {[%clk 0:01:40]}  g5 {[%clk 0:00:53]} 30. Kg4 {[%clk 0:01:38]}  Kg6 {[%clk 0:00:50]} 31. Rg8+ {[%clk 0:01:37]}  Kf6 {[%clk 0:00:50]} 32. Rb8 {[%clk 0:01:36]}  Rb4+ {[%clk 0:00:48]} 33. Kh3 {[%clk 0:01:34]}  Rh4+ {[%clk 0:00:47]} 34. Kg2 {[%clk 0:01:31]}  Rxh2+ {[%clk 0:00:47]} 35. Kf1 {[%clk 0:01:31]}  Rb2 {[%clk 0:00:45]} 36. Rb7 {[%clk 0:01:26]}  h5 {[%clk 0:00:44]} 37. Rb8 {[%clk 0:01:24]}  h4 {[%clk 0:00:43]} 38. Re8 {[%clk 0:01:25]}  Bf4 {[%clk 0:00:38]} 39. Rh8 {[%clk 0:01:16]}  Rxb5 {[%clk 0:00:37]} 40. Kg2 {[%clk 0:01:17]}  Rb2+ {[%clk 0:00:33]} 41. Kh3 {[%clk 0:01:18]}  Kf5 {[%clk 0:00:32]} 42. Rb8 {[%clk 0:01:13]}  Rh2# {[%clk 0:00:31]} 0-1

[Event "November 21 Early 2023"]
[Site "https://www.chess.com"]
[Date "2023.11.21"]
[Round "2"]
[White "Ferreira, Vitor Hugo Vieira"]
[Black "Cardozo Munar, Carlos Eduardo"]
[Result "1-0"]
[Board "199"]
[TimeControl "180+1"]
[WhiteFideId "2119765"]
[BlackFideId "4409477"]
[WhiteElo "2123"]
[BlackElo "2067"]
[WhiteTeam "BRA"]
[BlackTeam "COL"]
[WhiteClock "0:00:59"]
[BlackClock "0:00:04"]

1. d4 {[%clk 0:03:00]}  d5 {[%clk 0:03:00]} 2. c4 {[%clk 0:03:00]}  e5 {[%clk 0:03:00]} 3. dxe5 {[%clk 0:02:59]}  d4 {[%clk 0:03:00]} 4. Nf3 {[%clk 0:02:56]}  Nc6 {[%clk 0:03:01]} 5. a3 {[%clk 0:02:50]}  Nge7 {[%clk 0:03:00]} 6. Nbd2 {[%clk 0:02:47]}  Ng6 {[%clk 0:03:00]} 7. Nb3 {[%clk 0:02:47]}  Ngxe5 {[%clk 0:03:01]} 8. Nfxd4 {[%clk 0:02:43]}  Nxc4 {[%clk 0:02:54]} 9. e3 {[%clk 0:02:33]}  Nxd4 {[%clk 0:02:50]} 10. Bxc4 {[%clk 0:02:27]}  Nc6 {[%clk 0:02:46]} 11. Qc2 {[%clk 0:02:22]}  Be7 {[%clk 0:02:42]} 12. O-O {[%clk 0:02:22]}  O-O {[%clk 0:02:42]} 13. Bd2 {[%clk 0:02:23]}  Bf6 {[%clk 0:02:40]} 14. Rfd1 {[%clk 0:02:23]}  Qe7 {[%clk 0:02:40]} 15. Rac1 {[%clk 0:02:20]}  Be6 {[%clk 0:02:38]} 16. Bb5 {[%clk 0:02:15]}  a6 {[%clk 0:02:33]} 17. Bxc6 {[%clk 0:02:15]}  bxc6 {[%clk 0:02:34]} 18. Bb4 {[%clk 0:02:15]}  Bxb3 {[%clk 0:02:01]} 19. Qxb3 {[%clk 0:02:13]}  Qe4 {[%clk 0:01:57]} 20. Bxf8 {[%clk 0:02:11]}  Rxf8 {[%clk 0:01:56]} 21. Qb7 {[%clk 0:02:09]}  a5 {[%clk 0:01:29]} 22. Qxc6 {[%clk 0:02:05]}  Qxc6 {[%clk 0:01:29]} 23. Rxc6 {[%clk 0:02:06]}  Bxb2 {[%clk 0:01:28]} 24. a4 {[%clk 0:02:07]}  Be5 {[%clk 0:01:25]} 25. Rd5 {[%clk 0:02:07]}  Bd6 {[%clk 0:01:14]} 26. Rxa5 {[%clk 0:02:06]}  Rb8 {[%clk 0:01:09]} 27. Rb5 {[%clk 0:02:05]}  Ra8 {[%clk 0:01:10]} 28. a5 {[%clk 0:02:05]}  g6 {[%clk 0:01:10]} 29. a6 {[%clk 0:02:05]}  Kg7 {[%clk 0:01:11]} 30. g3 {[%clk 0:02:04]}  Kf6 {[%clk 0:01:10]} 31. Rb7 {[%clk 0:02:02]}  Ke6 {[%clk 0:01:09]} 32. e4 {[%clk 0:01:59]}  Kd7 {[%clk 0:01:10]} 33. Rc2 {[%clk 0:01:43]}  Rxa6 {[%clk 0:01:09]} 34. Rb8 {[%clk 0:01:41]}  h5 {[%clk 0:01:06]} 35. f4 {[%clk 0:01:36]}  Ra7 {[%clk 0:00:40]} 36. e5 {[%clk 0:01:35]}  Be7 {[%clk 0:00:41]} 37. Rb3 {[%clk 0:01:31]}  c5 {[%clk 0:00:40]} 38. Rcb2 {[%clk 0:01:25]}  Ke6 {[%clk 0:00:40]} 39. Kg2 {[%clk 0:01:22]}  h4 {[%clk 0:00:37]} 40. g4 {[%clk 0:01:22]}  Ra4 {[%clk 0:00:17]} 41. Kf3 {[%clk 0:01:19]}  g5 {[%clk 0:00:14]} 42. Rb6+ {[%clk 0:01:18]}  Kd5 {[%clk 0:00:11]} 43. Rd2+ {[%clk 0:01:12]}  Kc4 {[%clk 0:00:11]} 44. f5 {[%clk 0:01:11]}  Bd8 {[%clk 0:00:11]} 45. Rxd8 {[%clk 0:01:10]}  Ra3+ {[%clk 0:00:11]} 46. Kg2 {[%clk 0:01:09]}  h3+ {[%clk 0:00:10]} 47. Kf2 {[%clk 0:01:09]}  Ra2+ {[%clk 0:00:10]} 48. Kg3 {[%clk 0:01:09]}  Ra3+ {[%clk 0:00:11]} 49. Kf2 {[%clk 0:01:10]}  Ra2+ {[%clk 0:00:11]} 50. Ke3 {[%clk 0:01:10]}  Rxh2 {[%clk 0:00:11]} 51. e6 {[%clk 0:01:08]}  fxe6 {[%clk 0:00:11]} 52. fxe6 {[%clk 0:01:08]}  Rh1 {[%clk 0:00:12]} 53. Kf2 {[%clk 0:01:03]}  Rh2+ {[%clk 0:00:10]} 54. Kg3 {[%clk 0:01:03]}  Re2 {[%clk 0:00:10]} 55. Kxh3 {[%clk 0:01:02]}  Kc3 {[%clk 0:00:11]} 56. Rc6 {[%clk 0:01:02]}  c4 {[%clk 0:00:11]} 57. Rdc8 {[%clk 0:01:01]}  Kd4 {[%clk 0:00:11]} 58. Rxc4+ {[%clk 0:01:01]}  Kd5 {[%clk 0:00:12]} 59. R8c6 {[%clk 0:00:59]}  Re3+ {[%clk 0:00:11]} 60. Kg2 {[%clk 0:00:59]}  Re2+ {[%clk 0:00:12]} 61. Kf3 {[%clk 0:00:59]}  Re1 {[%clk 0:00:12]} 62. R4c5+ {[%clk 0:00:59]}  Kd4 {[%clk 0:00:04]} 63. Rxg5 {[%clk 0:00:59]} 1-0

[Event "November 21 Early 2023"]
[Site "https://www.chess.com"]
[Date "2023.11.21"]
[Round "2"]
[White "LLariMarc"]
[Black "Koepke, Christian"]
[Result "0-1"]
[Board "200"]
[TimeControl "180+1"]
[BlackFideId "4655737"]
[WhiteElo "2276"]
[BlackElo "2238"]
[BlackTeam "GER"]
[WhiteClock "0:00:44"]
[BlackClock "0:00:11"]

1. d4 {[%clk 0:03:00]}  d5 {[%clk 0:02:59]} 2. Nf3 {[%clk 0:03:00]}  Bg4 {[%clk 0:02:59]} 3. Nbd2 {[%clk 0:02:57]}  e6 {[%clk 0:02:58]} 4. h3 {[%clk 0:02:57]}  Bh5 {[%clk 0:02:58]} 5. g3 {[%clk 0:02:56]}  Nf6 {[%clk 0:02:58]} 6. Bg2 {[%clk 0:02:57]}  c6 {[%clk 0:02:55]} 7. O-O {[%clk 0:02:57]}  Nbd7 {[%clk 0:02:55]} 8. c4 {[%clk 0:02:57]}  Be7 {[%clk 0:02:53]} 9. Qb3 {[%clk 0:02:56]}  Qb6 {[%clk 0:02:47]} 10. Qxb6 {[%clk 0:02:52]}  axb6 {[%clk 0:02:45]} 11. b3 {[%clk 0:02:51]}  O-O {[%clk 0:02:42]} 12. Bb2 {[%clk 0:02:51]}  h6 {[%clk 0:02:39]} 13. a4 {[%clk 0:02:51]}  Bg6 {[%clk 0:02:38]} 14. e3 {[%clk 0:02:49]}  Bb4 {[%clk 0:02:35]} 15. Ba3 {[%clk 0:02:46]}  Bxa3 {[%clk 0:02:31]} 16. Rxa3 {[%clk 0:02:47]}  b5 {[%clk 0:02:30]} 17. cxb5 {[%clk 0:02:45]}  cxb5 {[%clk 0:02:30]} 18. Rc1 {[%clk 0:02:45]}  b4 {[%clk 0:02:28]} 19. Raa1 {[%clk 0:02:45]}  Rfc8 {[%clk 0:02:28]} 20. Bf1 {[%clk 0:02:45]}  Rc3 {[%clk 0:02:15]} 21. Rxc3 {[%clk 0:02:22]}  bxc3 {[%clk 0:02:15]} 22. Nb1 {[%clk 0:02:22]}  Rc8 {[%clk 0:02:06]} 23. Na3 {[%clk 0:02:22]}  c2 {[%clk 0:01:52]} 24. Rc1 {[%clk 0:02:20]}  Rc3 {[%clk 0:01:52]} 25. Nd2 {[%clk 0:02:17]}  Ne4 {[%clk 0:01:35]} 26. Nf3 {[%clk 0:01:33]}  Rxb3 {[%clk 0:01:13]} 27. Nxc2 {[%clk 0:01:33]}  Rc3 {[%clk 0:01:13]} 28. Nfe1 {[%clk 0:01:29]}  Nd2 {[%clk 0:00:50]} 29. Bb5 {[%clk 0:01:17]}  Nf6 {[%clk 0:00:41]} 30. Rd1 {[%clk 0:01:14]}  Nb3 {[%clk 0:00:12]} 31. Nb4 {[%clk 0:01:09]}  Na5 {[%clk 0:00:08]} 32. Nbd3 {[%clk 0:01:06]}  Nc4 {[%clk 0:00:08]} 33. Nc5 {[%clk 0:01:00]}  b6 {[%clk 0:00:07]} 34. Nd7 {[%clk 0:01:00]}  Nxd7 {[%clk 0:00:06]} 35. Bxd7 {[%clk 0:01:00]}  Ra3 {[%clk 0:00:06]} 36. Nf3 {[%clk 0:00:57]}  Nb2 {[%clk 0:00:04]} 37. Rd2 {[%clk 0:00:56]}  Nxa4 {[%clk 0:00:05]} 38. Bxa4 {[%clk 0:00:52]}  Rxa4 {[%clk 0:00:06]} 39. Rb2 {[%clk 0:00:53]}  Be4 {[%clk 0:00:05]} 40. Kg2 {[%clk 0:00:46]}  Ra6 {[%clk 0:00:04]} 41. g4 {[%clk 0:00:47]}  g5 {[%clk 0:00:03]} 42. Kg3 {[%clk 0:00:47]}  f6 {[%clk 0:00:04]} 43. Nd2 {[%clk 0:00:46]}  Bd3 {[%clk 0:00:04]} 44. Rb3 {[%clk 0:00:45]}  Bc4 {[%clk 0:00:04]} 45. Rb4 {[%clk 0:00:45]}  b5 {[%clk 0:00:04]} 46. Nb1 {[%clk 0:00:44]}  Ra1 {[%clk 0:00:03]} 47. Nc3 {[%clk 0:00:43]}  Ra5 {[%clk 0:00:03]} 48. f3 {[%clk 0:00:43]}  Kf7 {[%clk 0:00:03]} 49. e4 {[%clk 0:00:43]}  Ke7 {[%clk 0:00:04]} 50. exd5 {[%clk 0:00:43]}  exd5 {[%clk 0:00:04]} 51. h4 {[%clk 0:00:41]}  Kd6 {[%clk 0:00:04]} 52. hxg5 {[%clk 0:00:41]}  hxg5 {[%clk 0:00:04]} 53. Kf2 {[%clk 0:00:42]}  Kc6 {[%clk 0:00:04]} 54. Ke3 {[%clk 0:00:42]}  Ra3 {[%clk 0:00:04]} 55. Kd2 {[%clk 0:00:42]}  Rb3 {[%clk 0:00:05]} 56. Rxb3 {[%clk 0:00:41]}  Bxb3 {[%clk 0:00:06]} 57. Nb1 {[%clk 0:00:40]}  b4 {[%clk 0:00:06]} 58. Kc1 {[%clk 0:00:40]}  Kb5 {[%clk 0:00:06]} 59. Nd2 {[%clk 0:00:41]}  Bc4 {[%clk 0:00:07]} 60. Kb2 {[%clk 0:00:41]}  Be2 {[%clk 0:00:07]} 61. Kb3 {[%clk 0:00:40]}  Bd1+ {[%clk 0:00:07]} 62. Kb2 {[%clk 0:00:41]}  Ka4 {[%clk 0:00:08]} 63. Ka2 {[%clk 0:00:40]}  b3+ {[%clk 0:00:08]} 64. Kb2 {[%clk 0:00:39]}  Kb4 {[%clk 0:00:09]} 65. Nf1 {[%clk 0:00:39]}  Be2 {[%clk 0:00:09]} 66. Ne3 {[%clk 0:00:40]}  Bxf3 {[%clk 0:00:09]} 67. Kb1 {[%clk 0:00:38]}  Kc3 {[%clk 0:00:09]} 68. Nf5 {[%clk 0:00:39]}  Be4+ {[%clk 0:00:05]} 69. Kc1 {[%clk 0:00:39]}  Bxf5 {[%clk 0:00:06]} 70. gxf5 {[%clk 0:00:40]}  Kxd4 {[%clk 0:00:06]} 71. Kb2 {[%clk 0:00:40]}  Ke5 {[%clk 0:00:07]} 72. Kxb3 {[%clk 0:00:41]}  Kxf5 {[%clk 0:00:08]} 73. Kb4 {[%clk 0:00:42]}  Kf4 {[%clk 0:00:08]} 74. Kc5 {[%clk 0:00:43]}  g4 {[%clk 0:00:09]} 75. Kd6 {[%clk 0:00:44]}  g3 {[%clk 0:00:10]} 76. Ke6 {[%clk 0:00:44]}  g2 {[%clk 0:00:10]} 77. Kxf6 {[%clk 0:00:44]}  g1=Q {[%clk 0:00:11]} 0-1

[Event "November 21 Early 2023"]
[Site "https://www.chess.com"]
[Date "2023.11.21"]
[Round "2"]
[White "Minina, Veronika"]
[Black "FunnyDuck66"]
[Result "1-0"]
[Board "201"]
[TimeControl "180+1"]
[WhiteFideId "4174780"]
[WhiteElo "1905"]
[BlackElo "2500"]
[WhiteTeam "RUS"]
[WhiteClock "0:00:13"]
[BlackClock "0:00:00"]

1. Nf3 {[%clk 0:02:43]}  Nf6 {[%clk 0:02:57]} 2. c4 {[%clk 0:02:43]}  e6 {[%clk 0:02:57]} 3. g3 {[%clk 0:02:43]}  d5 {[%clk 0:02:51]} 4. Bg2 {[%clk 0:02:43]}  Be7 {[%clk 0:02:51]} 5. O-O {[%clk 0:02:42]}  O-O {[%clk 0:02:51]} 6. d4 {[%clk 0:02:42]}  dxc4 {[%clk 0:02:50]} 7. Qc2 {[%clk 0:02:41]}  b5 {[%clk 0:02:49]} 8. a4 {[%clk 0:02:26]}  Bb7 {[%clk 0:02:48]} 9. axb5 {[%clk 0:02:25]}  a6 {[%clk 0:02:47]} 10. bxa6 {[%clk 0:02:21]}  Nxa6 {[%clk 0:02:46]} 11. Qxc4 {[%clk 0:02:13]}  Bd5 {[%clk 0:02:41]} 12. Qc3 {[%clk 0:01:27]}  Ne4 {[%clk 0:02:29]} 13. Qe1 {[%clk 0:01:27]}  c5 {[%clk 0:02:16]} 14. Nc3 {[%clk 0:01:21]}  Nxc3 {[%clk 0:02:02]} 15. bxc3 {[%clk 0:01:22]}  cxd4 {[%clk 0:01:59]} 16. cxd4 {[%clk 0:01:22]}  Nb4 {[%clk 0:01:55]} 17. Rb1 {[%clk 0:01:11]}  Nc6 {[%clk 0:01:27]} 18. e4 {[%clk 0:01:10]}  Bc4 {[%clk 0:01:28]} 19. d5 {[%clk 0:01:03]}  Bxf1 {[%clk 0:01:23]} 20. Qxf1 {[%clk 0:00:58]}  exd5 {[%clk 0:01:21]} 21. exd5 {[%clk 0:00:57]}  Qxd5 {[%clk 0:01:21]} 22. Ng5 {[%clk 0:00:50]}  Qd7 {[%clk 0:01:15]} 23. Ne4 {[%clk 0:00:47]}  Rab8 {[%clk 0:01:09]} 24. Bf4 {[%clk 0:00:40]}  Rxb1 {[%clk 0:01:06]} 25. Qxb1 {[%clk 0:00:41]}  Nd4 {[%clk 0:01:04]} 26. Kh1 {[%clk 0:00:26]}  Rd8 {[%clk 0:00:57]} 27. h4 {[%clk 0:00:26]}  Ne6 {[%clk 0:00:41]} 28. Be3 {[%clk 0:00:15]}  Nd4 {[%clk 0:00:29]} 29. Kh2 {[%clk 0:00:15]}  Ne6 {[%clk 0:00:09]} 30. Bh3 {[%clk 0:00:14]}  Qd5 {[%clk 0:00:08]} 31. Bg2 {[%clk 0:00:13]}  Qe5 {[%clk 0:00:05]} 32. Qc2 {[%clk 0:00:12]}  g6 {[%clk 0:00:04]} 33. Bf4 {[%clk 0:00:10]}  Qg7 {[%clk 0:00:04]} 34. Be3 {[%clk 0:00:10]}  Nd4 {[%clk 0:00:04]} 35. Qb1 {[%clk 0:00:09]}  f5 {[%clk 0:00:04]} 36. Ng5 {[%clk 0:00:09]}  Bf6 {[%clk 0:00:03]} 37. Qe1 {[%clk 0:00:08]}  h6 {[%clk 0:00:03]} 38. Nf3 {[%clk 0:00:09]}  g5 {[%clk 0:00:03]} 39. hxg5 {[%clk 0:00:09]}  hxg5 {[%clk 0:00:04]} 40. Nxd4 {[%clk 0:00:09]}  Bxd4 {[%clk 0:00:05]} 41. Bxd4 {[%clk 0:00:09]}  Rxd4 {[%clk 0:00:06]} 42. Qe6+ {[%clk 0:00:10]}  Kh8 {[%clk 0:00:05]} 43. Bd5 {[%clk 0:00:10]}  Qh7+ {[%clk 0:00:05]} 44. Kg2 {[%clk 0:00:10]}  Qg7 {[%clk 0:00:06]} 45. Qe8+ {[%clk 0:00:10]}  Kh7 {[%clk 0:00:06]} 46. Qh5+ {[%clk 0:00:10]}  Qh6 {[%clk 0:00:06]} 47. Qf7+ {[%clk 0:00:10]}  Qg7 {[%clk 0:00:07]} 48. Qh5+ {[%clk 0:00:11]}  Qh6 {[%clk 0:00:08]} 49. Bg8+ {[%clk 0:00:12]}  Kg7 {[%clk 0:00:08]} 50. Qf7+ {[%clk 0:00:12]}  Kh8 {[%clk 0:00:08]} 51. Qe8 {[%clk 0:00:12]}  Re4 {[%clk 0:00:06]} 52. Be6+ {[%clk 0:00:11]}  Kg7 {[%clk 0:00:05]} 53. Qg8+ {[%clk 0:00:11]}  Kf6 {[%clk 0:00:05]} 54. Qf7+ {[%clk 0:00:12]}  Ke5 {[%clk 0:00:06]} 55. Qxf5+ {[%clk 0:00:13]}  Kd4 {[%clk 0:00:05]} 56. Qd5+ {[%clk 0:00:13]}  Kc3 {[%clk 0:00:00]} 57. Qxe4 {[%clk 0:00:13]} 1-0

[Event "November 21 Early 2023"]
[Site "https://www.chess.com"]
[Date "2023.11.21"]
[Round "2"]
[White "UNSTOPPABLE_LEGEND"]
[Black "Malikova777"]
[Result "1-0"]
[Board "202"]
[TimeControl "180+1"]
[WhiteElo "2500"]
[BlackElo "2271"]
[WhiteClock "0:00:35"]
[BlackClock "0:00:10"]

1. e4 {[%clk 0:03:00]}  c6 {[%clk 0:02:59]} 2. d4 {[%clk 0:02:56]}  d5 {[%clk 0:02:59]} 3. Nd2 {[%clk 0:02:56]}  dxe4 {[%clk 0:02:59]} 4. Nxe4 {[%clk 0:02:57]}  Bf5 {[%clk 0:02:59]} 5. Ng3 {[%clk 0:02:57]}  Bg6 {[%clk 0:03:00]} 6. h4 {[%clk 0:02:58]}  h6 {[%clk 0:03:00]} 7. Nf3 {[%clk 0:02:59]}  Nd7 {[%clk 0:03:00]} 8. h5 {[%clk 0:02:59]}  Bh7 {[%clk 0:03:00]} 9. Bd3 {[%clk 0:03:00]}  Bxd3 {[%clk 0:03:01]} 10. Qxd3 {[%clk 0:03:01]}  e6 {[%clk 0:03:02]} 11. Bd2 {[%clk 0:03:00]}  Ngf6 {[%clk 0:03:02]} 12. O-O-O {[%clk 0:03:00]}  Be7 {[%clk 0:03:03]} 13. Kb1 {[%clk 0:02:58]}  Qb6 {[%clk 0:03:02]} 14. Nh4 {[%clk 0:02:55]}  O-O-O {[%clk 0:02:53]} 15. c4 {[%clk 0:02:53]}  Ne5 {[%clk 0:02:43]} 16. Qe2 {[%clk 0:02:46]}  Ned7 {[%clk 0:02:19]} 17. Nf3 {[%clk 0:02:33]}  Rhe8 {[%clk 0:02:13]} 18. Bc3 {[%clk 0:02:00]}  c5 {[%clk 0:02:05]} 19. Ne5 {[%clk 0:01:56]}  Nxe5 {[%clk 0:02:04]} 20. dxe5 {[%clk 0:01:57]}  Nd7 {[%clk 0:01:59]} 21. Ne4 {[%clk 0:01:53]}  Nb8 {[%clk 0:01:36]} 22. Qg4 {[%clk 0:01:48]}  Bf8 {[%clk 0:01:12]} 23. Qf4 {[%clk 0:01:31]}  Qc7 {[%clk 0:01:06]} 24. Nd6+ {[%clk 0:01:24]}  Bxd6 {[%clk 0:01:05]} 25. exd6 {[%clk 0:01:25]}  Qc6 {[%clk 0:00:50]} 26. Bxg7 {[%clk 0:01:25]}  e5 {[%clk 0:00:39]} 27. Qxf7 {[%clk 0:01:17]}  Nd7 {[%clk 0:00:20]} 28. Bxh6 {[%clk 0:00:55]}  Qxg2 {[%clk 0:00:16]} 29. Rhg1 {[%clk 0:00:54]}  Qe4+ {[%clk 0:00:16]} 30. Ka1 {[%clk 0:00:54]}  Nf8 {[%clk 0:00:10]} 31. Qc7# {[%clk 0:00:35]} 1-0

[Event "November 21 Early 2023"]
[Site "https://www.chess.com"]
[Date "2023.11.21"]
[Round "2"]
[White "Panda Sambit"]
[Black "Andersson, Bjorn 1971"]
[Result "1-0"]
[Board "204"]
[TimeControl "180+1"]
[WhiteFideId "25091794"]
[BlackFideId "1702114"]
[WhiteElo "2216"]
[BlackElo "2172"]
[WhiteTeam "IND"]
[BlackTeam "SWE"]
[WhiteClock "0:02:08"]
[BlackClock "0:01:45"]

1. e4 {[%clk 0:03:00]}  c5 {[%clk 0:03:00]} 2. Nf3 {[%clk 0:03:00]}  Nc6 {[%clk 0:03:01]} 3. Bb5 {[%clk 0:02:59]}  e6 {[%clk 0:03:01]} 4. O-O {[%clk 0:02:51]}  Nge7 {[%clk 0:02:57]} 5. c3 {[%clk 0:02:51]}  a6 {[%clk 0:02:57]} 6. Bd3 {[%clk 0:02:49]}  b5 {[%clk 0:02:57]} 7. a4 {[%clk 0:02:48]}  c4 {[%clk 0:02:56]} 8. Bc2 {[%clk 0:02:48]}  Bb7 {[%clk 0:02:56]} 9. Na3 {[%clk 0:02:45]}  Na7 {[%clk 0:02:52]} 10. axb5 {[%clk 0:02:41]}  axb5 {[%clk 0:02:52]} 11. d3 {[%clk 0:02:42]}  d5 {[%clk 0:02:43]} 12. exd5 {[%clk 0:02:37]}  exd5 {[%clk 0:02:42]} 13. Nd4 {[%clk 0:02:37]}  Qb6 {[%clk 0:02:33]} 14. Re1 {[%clk 0:02:36]}  g6 {[%clk 0:02:25]} 15. Be3 {[%clk 0:02:32]}  Qd8 {[%clk 0:02:00]} 16. Naxb5 {[%clk 0:02:24]}  Nxb5 {[%clk 0:02:00]} 17. Rxa8 {[%clk 0:02:21]}  Bxa8 {[%clk 0:02:00]} 18. Nxb5 {[%clk 0:02:21]}  Bg7 {[%clk 0:01:57]} 19. Bc5 {[%clk 0:02:21]}  Bf6 {[%clk 0:01:50]} 20. Qf3 {[%clk 0:02:21]}  Bg5 {[%clk 0:01:47]} 21. Nd6+ {[%clk 0:02:09]}  Kf8 {[%clk 0:01:45]} 22. Qxf7# {[%clk 0:02:08]} 1-0

[Event "November 21 Early 2023"]
[Site "https://www.chess.com"]
[Date "2023.11.21"]
[Round "2"]
[White "Jesseinkman"]
[Black "Witty_Alien"]
[Result "0-1"]
[Board "206"]
[TimeControl "180+1"]
[WhiteElo "2494"]
[BlackElo "2268"]
[WhiteClock "0:00:08"]
[BlackClock "0:00:41"]

1. e4 {[%clk 0:03:00]}  c5 {[%clk 0:03:00]} 2. Nf3 {[%clk 0:03:01]}  d6 {[%clk 0:03:00]} 3. d4 {[%clk 0:02:59]}  cxd4 {[%clk 0:03:00]} 4. Nxd4 {[%clk 0:03:00]}  Nf6 {[%clk 0:03:00]} 5. Nc3 {[%clk 0:03:00]}  a6 {[%clk 0:03:00]} 6. f3 {[%clk 0:03:00]}  e5 {[%clk 0:02:59]} 7. Nb3 {[%clk 0:03:00]}  Be6 {[%clk 0:02:59]} 8. Be3 {[%clk 0:03:01]}  Nbd7 {[%clk 0:02:49]} 9. Qd2 {[%clk 0:02:58]}  b5 {[%clk 0:02:39]} 10. g4 {[%clk 0:02:58]}  Nb6 {[%clk 0:02:36]} 11. g5 {[%clk 0:02:57]}  Nfd7 {[%clk 0:02:35]} 12. Nd5 {[%clk 0:02:56]}  Rc8 {[%clk 0:01:53]} 13. O-O-O {[%clk 0:02:18]}  Nc4 {[%clk 0:01:52]} 14. Bxc4 {[%clk 0:02:15]}  bxc4 {[%clk 0:01:52]} 15. Na5 {[%clk 0:02:13]}  c3 {[%clk 0:01:33]} 16. Nxc3 {[%clk 0:02:03]}  Qxa5 {[%clk 0:01:33]} 17. f4 {[%clk 0:01:59]}  Bxa2 {[%clk 0:01:27]} 18. f5 {[%clk 0:01:48]}  Be7 {[%clk 0:01:11]} 19. h4 {[%clk 0:01:42]}  Bc4 {[%clk 0:01:03]} 20. Kb1 {[%clk 0:01:41]}  Rb8 {[%clk 0:01:01]} 21. Rhg1 {[%clk 0:01:32]}  Nc5 {[%clk 0:00:48]} 22. f6 {[%clk 0:00:55]}  Nxe4 {[%clk 0:00:46]} 23. Qg2 {[%clk 0:00:16]}  Rxb2+ {[%clk 0:00:41]} 24. Kxb2 {[%clk 0:00:15]}  Qxc3+ {[%clk 0:00:40]} 25. Kb1 {[%clk 0:00:11]}  Qb4+ {[%clk 0:00:40]} 26. Ka1 {[%clk 0:00:08]}  Qa3+ {[%clk 0:00:41]} 0-1